bitfinex-derivatives/quotes_ETHF0:USTF0_20260303
["timestamp","ask_amount","ask_price","bid_price","bid_amount"]
[1772542436360,0.00453637,1966.1,1965.0,0.88383233]
[1772542436754,0.87007238,1966.1,1965.0,0.88383233]
[1772542441066,0.00453637,1966.1,1965.2,0.88383233]
[1772542441260,0.00453637,1966.1,1965.2,0.88463233]
[1772542441862,0.87007238,1966.1,1965.2,0.88463233]
[1772542443964,0.86553601,1965.9,1965.2,0.0008]
[1772542444269,0.86553601,1965.9,1965.0,0.88383233]
[1772542445169,0.86553601,1965.8,1964.8,0.0008]
[1772542445370,0.86553601,1965.8,1964.8,0.88463233]
[1772542447669,0.86553601,1966.0,1964.8,0.88463233]
[1772542451870,0.86553601,1966.0,1965.0,0.88383233]
[1772542452462,0.00453637,1966.1,1965.2,0.88383233]
[1772542452664,0.87007238,1966.1,1965.2,0.88463233]
[1772542454376,0.00453637,1966.1,1965.4,0.88383233]
[1772542454567,0.00453637,1966.1,1965.4,0.88885921]
[1772542456470,0.86553601,1966.4,1965.4,0.88885921]
[1772542456675,0.86553601,1966.7,1965.4,0.88885921]
[1772542456872,0.86553601,1966.5,1965.4,0.88885921]
[1772542457775,0.87095869,1966.5,1965.4,0.88885921]
[1772542459979,0.00542268,1966.5,1965.6,0.83751843]
[1772542460175,0.00542268,1966.5,1965.6,0.83831843]
[1772542462276,0.00542268,1966.5,1965.8,0.83751843]
[1772542463678,5.03674897,1967.2,1965.9,0.25437]
[1772542463888,0.81508968,1967.1,1966.0,0.83751843]
[1772542464179,0.81508968,1967.1,1966.0,0.83831843]
[1772542464684,0.81508968,1967.1,1965.6,0.83831843]
[1772542464685,0.81508968,1966.5,1965.6,0.83831843]
[1772542465678,0.81508968,1966.5,1965.6,0.0008]
[1772542465883,9.05269818,1966.6,1965.4,0.84254531]
[1772542465884,0.81508968,1966.2,1965.4,0.00502688]
[1772542466388,0.81508968,1966.2,1965.4,0.84254531]
[1772542473784,0.81508968,1966.6,1965.6,0.83751843]
[1772542474086,0.81508968,1966.6,1965.6,0.83831843]
[1772542478889,4.47589929,1967.0,1965.6,0.83831843]
[1772542479086,0.81508968,1966.9,1965.6,0.83831843]
[1772542479292,0.81508968,1966.7,1965.6,0.83831843]
[1772542480282,0.81508968,1966.7,1965.8,0.83751843]
[1772542480487,0.81508968,1966.9,1965.8,0.83751843]
[1772542480985,0.81984173,1967.1,1965.8,0.83751843]
[1772542486994,0.81508968,1966.9,1965.8,0.83751843]
[1772542489286,0.88580498,1967.1,1966.0,0.82528695]
[1772542489486,0.88580498,1967.1,1966.0,0.82608695]
[1772542490691,0.00475205,1967.1,1966.4,0.82528695]
[1772542490897,0.00475205,1967.1,1966.4,0.82608695]
[1772542491897,0.88580498,1967.1,1966.4,0.82608695]
[1772542492195,0.88580498,1967.1,1966.4,0.0008]
[1772542494392,0.00475205,1967.1,1966.5,0.82528695]
[1772542495096,0.88105293,1967.4,1966.5,0.82528695]
[1772542495298,0.88105293,1967.8,1966.6,0.82528695]
[1772542495700,0.88105293,1967.8,1966.7,0.82528695]
[1772542495995,0.8855716,1967.8,1966.7,0.82528695]
[1772542496996,0.00451867,1967.8,1966.9,0.82608695]
[1772542497193,0.00451867,1967.8,1966.9,0.83020899]
[1772542497804,0.88105293,1968.2,1967.2,0.82528695]
[1772542498001,0.88105293,1968.7,1967.3,0.25419]
[1772542498304,0.88105293,1968.7,1967.4,0.82528695]
[1772542498505,0.88105293,1968.7,1967.4,0.82608695]
[1772542498905,0.88483713,1968.7,1967.4,0.82608695]
[1772542500700,0.88483713,1968.7,1967.5,0.82528695]
[1772542503106,0.88483713,1968.7,1967.7,0.82528695]
[1772542503311,0.88105293,1969.0,1967.9,0.82528695]
[1772542503511,0.88105293,1969.0,1967.9,0.82608695]
[1772542504311,0.88465908,1969.0,1967.9,0.82608695]
[1772542510317,0.88465908,1969.0,1967.9,0.53308695]
[1772542512211,0.88465908,1969.0,1968.0,0.2541]
[1772542512416,0.88465908,1969.0,1968.1,0.82528695]
[1772542516116,0.00360615,1969.0,1968.1,0.82528695]
[1772542516718,0.25387,1969.9,1968.4,0.82528695]
[1772542516918,0.88105293,1969.8,1968.4,0.82608695]
[1772542517218,0.08840801,1970.0,1968.4,0.82608695]
[1772542517219,0.88105293,1969.6,1968.5,0.82528695]
[1772542517418,0.25388,1969.7,1968.4,0.25485]
[1772542517419,0.88105293,1969.4,1968.4,0.0008]
[1772542517618,0.88607575,1969.4,1968.4,0.00698255]
[1772542518115,0.82141509,1969.3,1968.4,0.82747247]
[1772542518319,0.82141509,1969.2,1968.4,0.00698255]
[1772542522614,0.86448257,1969.3,1968.4,0.00698255]
[1772542523220,0.86448257,1969.3,1968.4,0.8605135]
[1772542524923,0.86448257,1969.3,1968.4,0.00698255]
[1772542525320,0.86448257,1969.1,1968.4,0.8605135]
[1772542526015,0.86448257,1968.9,1968.0,0.85353095]
[1772542526913,0.86448257,1968.9,1968.0,0.86008971]
[1772542527319,0.86448257,1968.7,1968.0,0.86008971]
[1772542530624,0.86448257,1968.9,1968.0,0.86008971]
[1772542530825,0.86448257,1968.7,1968.0,0.86008971]
[1772542534227,4.22165929,1969.0,1968.0,0.86008971]
[1772542534423,0.86448257,1969.1,1968.0,0.86008971]
[1772542534623,7.38445129,1969.0,1968.0,0.86008971]
[1772542534824,0.86448257,1969.0,1968.0,0.86008971]
[1772542536022,0.86448257,1969.2,1968.2,0.85353095]
[1772542536320,7.38334718,1969.1,1968.2,0.85353095]
[1772542536523,0.86448257,1969.1,1968.2,0.85353095]
[1772542538125,0.86448257,1968.9,1968.2,0.85353095]
[1772542544030,0.86448257,1969.1,1968.2,0.85353095]
[1772542548633,0.83467487,1968.9,1968.2,0.85353095]
[1772542549633,0.83467487,1968.9,1968.1,0.8338499]
[1772542552240,6.657,1969.1,1968.1,0.8338499]
[1772542552241,0.83467487,1969.0,1968.1,0.8338499]
[1772542552640,0.83467487,1969.0,1968.0,0.84040866]
[1772542552838,0.83467487,1968.8,1968.0,0.84040866]
[1772542553434,0.83467487,1969.1,1968.0,0.84040866]
[1772542553635,0.83467487,1968.9,1968.0,0.84040866]
[1772542554329,0.83467487,1969.1,1968.0,0.84040866]
[1772542555440,0.83467487,1968.9,1968.0,0.84040866]
[1772542555641,0.83467487,1968.7,1968.0,0.84040866]
[1772542556938,0.83467487,1968.7,1968.0,0.00655876]
[1772542558445,0.83467487,1968.7,1968.0,0.84040866]
[1772542558744,0.83467487,1968.9,1968.0,0.84040866]
[1772542559246,0.83467487,1969.2,1968.2,0.8338499]
[1772542564543,0.00502282,1969.4,1968.4,0.8338499]
[1772542564749,0.83969769,1969.4,1968.4,0.8346499]
[1772542565145,0.83969769,1969.4,1968.6,0.8338499]
[1772542565346,0.00502282,1969.4,1968.6,0.8338499]
[1772542565750,0.00502282,1969.4,1968.8,0.8338499]
[1772542565949,0.83467487,1969.8,1968.8,0.8346499]
[1772542566152,0.83467487,1970.1,1969.0,0.8338499]
[1772542566946,0.83893804,1970.1,1969.0,0.8338499]
[1772542567349,0.83467487,1970.5,1969.2,0.8338499]
[1772542567653,0.83467487,1970.5,1969.2,0.8346499]
[1772542567953,0.83467487,1970.5,1969.4,0.8338499]
[1772542568148,0.83467487,1970.7,1969.6,0.8338499]
[1772542568450,0.84016554,1970.7,1969.6,0.83880573]
[1772542569245,0.83467487,1971.3,1969.8,0.8338499]
[1772542569849,0.83467487,1971.1,1969.8,0.8338499]
[1772542570254,0.83923136,1971.1,1969.8,0.8338499]
[1772542571950,0.83467487,1970.9,1969.8,0.8338499]
[1772542572153,0.83467487,1970.8,1969.8,0.8338499]
[1772542573249,0.83467487,1970.8,1969.6,0.83880573]
[1772542573447,0.83467487,1970.7,1969.6,0.83880573]
[1772542574257,0.83467487,1970.5,1969.6,0.83880573]
[1772542576054,0.83467487,1970.5,1969.6,0.00495583]
[1772542576659,0.25375,1970.8,1969.7,0.8338499]
[1772542576660,0.83467487,1970.3,1969.7,0.8338499]
[1772542576851,0.83467487,1970.2,1969.7,0.8338499]
[1772542577157,7.48867487,1970.4,1969.7,0.8338499]
[1772542577555,0.83467487,1970.3,1969.7,0.8338499]
[1772542578654,0.86074765,1970.6,1969.7,0.8338499]
[1772542579458,0.86074765,1970.6,1969.6,0.00495583]
[1772542579655,0.87269404,1970.4,1969.6,0.00495583]
[1772542581670,0.87269404,1970.2,1969.6,0.87290027]
[1772542584976,0.87269404,1970.1,1969.6,0.87290027]
[1772542585775,0.87269404,1970.1,1969.6,0.00495583]
[1772542586173,0.87269404,1970.1,1969.6,0.87290027]
[1772542589676,0.87269404,1970.1,1969.4,0.86794444]
[1772542589982,0.87269404,1970.1,1969.2,0.86874444]
[1772542590783,0.87269404,1970.1,1969.2,0.87337632]
[1772542591286,0.87269404,1969.9,1969.2,0.00543188]
[1772542591479,0.87269404,1969.9,1968.9,0.86794444]
[1772542591682,0.87269404,1969.7,1968.8,0.0008]
[1772542591979,0.87269404,1969.5,1968.8,0.0008]
[1772542592179,0.87269404,1969.5,1968.8,0.86874444]
[1772542592385,0.87269404,1969.3,1968.8,0.00625652]
[1772542592582,0.87269404,1969.3,1968.8,0.87420096]
[1772542594783,7.52569404,1969.2,1968.8,0.87420096]
[1772542595686,0.87269404,1969.1,1968.8,0.00625652]
[1772542596880,0.87269404,1969.1,1968.8,0.87420096]
[1772542597386,6.654,1969.3,1968.8,0.87420096]
[1772542597590,4.1148,1969.3,1968.8,0.87420096]
[1772542597884,4.98749404,1969.3,1968.8,0.87420096]
[1772542598085,0.87269404,1969.2,1968.8,0.87420096]
[1772542599792,0.87269404,1969.2,1968.8,0.00625652]
[1772542600786,3.41189404,1969.2,1968.8,0.00625652]
[1772542600991,0.87269404,1969.1,1968.8,0.00625652]
[1772542601190,2.5392,1969.2,1968.8,0.87420096]
[1772542601391,3.41189404,1969.2,1968.8,0.87420096]
[1772542601897,0.87269404,1969.2,1968.8,0.87420096]
[1772542602488,3.41189404,1969.2,1968.8,0.87420096]
[1772542603290,0.87269404,1969.1,1968.8,0.87420096]
[1772542607793,3.41189404,1969.1,1968.8,0.87420096]
[1772542610303,0.84219389,1968.8,1968.4,0.0008]
[1772542610697,3.38139389,1968.8,1968.4,0.0008]
[1772542611000,0.84219389,1968.8,1968.1,0.86414045]
[1772542611197,2.5392,1968.7,1968.1,0.86969082]
[1772542611396,0.84219389,1968.6,1968.1,0.86969082]
[1772542611600,7.49719389,1968.9,1968.1,0.86969082]
[1772542613496,0.84219389,1968.8,1968.1,0.86969082]
[1772542615498,0.84219389,1969.0,1968.1,0.86969082]
[1772542616902,0.84219389,1969.1,1968.3,0.86414045]
[1772542617205,0.84219389,1969.1,1968.3,0.86494045]
[1772542618007,7.49819389,1969.3,1968.3,0.86494045]
[1772542618207,10.03739389,1969.3,1968.3,0.86494045]
[1772542618902,0.84219389,1969.2,1968.3,0.86494045]
[1772542619605,0.84219389,1969.1,1968.3,0.86494045]
[1772542620208,0.84219389,1969.0,1968.3,0.0008]
[1772542620503,0.84219389,1969.0,1968.1,0.00555037]
[1772542620699,0.84219389,1968.6,1968.1,0.86969082]
[1772542621306,0.84219389,1968.4,1968.1,0.86969082]
[1772542621606,0.84219389,1968.4,1967.9,0.0008]
[1772542621908,6.656,1968.8,1967.9,0.0008]
[1772542621909,0.84219389,1968.2,1967.9,0.0008]
[1772542622302,0.84219389,1968.2,1967.9,0.86494045]
[1772542622700,2.5392,1968.1,1967.9,0.87096542]
[1772542622905,2.54519378,1968.1,1967.9,0.87096542]
[1772542623202,3.38139389,1968.0,1967.9,0.00682497]
[1772542623406,0.84219389,1967.9,1967.5,0.86494045]
[1772542623807,0.84818767,1968.1,1967.5,0.86494045]
[1772542624006,3.38139389,1968.0,1967.5,0.86494045]
[1772542624405,3.38139389,1967.9,1967.5,0.86494045]
[1772542624608,0.84219389,1967.9,1967.5,0.86948353]
[1772542625509,2.5392,1967.8,1967.5,0.86948353]
[1772542625907,2.5392,1967.7,1967.5,0.86948353]
[1772542626108,0.84219389,1967.9,1967.5,0.86948353]
[1772542626605,2.5392,1967.8,1967.5,0.86948353]
[1772542626807,0.84818767,1968.1,1967.5,0.86948353]
[1772542627013,3.38139389,1967.9,1967.5,0.86948353]
[1772542627212,0.84219389,1967.9,1967.5,0.86948353]
[1772542627404,0.84219389,1967.5,1967.1,0.86414045]
[1772542627603,0.84219389,1967.5,1967.1,0.86494045]
[1772542628016,2.5392,1967.2,1967.1,0.86494045]
[1772542628412,2.5392,1967.2,1967.1,0.87052834]
[1772542629516,1.8432,1967.2,1967.1,0.87052834]
[1772542631119,0.84219389,1967.5,1967.1,0.87052834]
[1772542631522,0.84219389,1967.5,1966.7,0.86414045]
[1772542632924,0.84219389,1967.5,1966.7,0.86832929]
[1772542634125,0.84219389,1967.5,1966.7,0.00418884]
[1772542634924,0.84219389,1967.4,1966.3,0.86414045]
[1772542635123,0.84219389,1967.4,1966.3,0.86494045]
[1772542635322,0.84219389,1967.4,1966.3,0.0008]
[1772542635527,0.84219389,1967.4,1966.3,0.86494045]
[1772542636027,0.84219389,1967.4,1966.3,0.8708287]
[1772542636028,0.84219389,1967.2,1966.3,0.8708287]
[1772542636728,0.84219389,1967.2,1966.3,0.00668825]
[1772542636927,0.84219389,1967.2,1966.3,0.8708287]
[1772542645840,0.84219389,1967.2,1966.5,0.86267663]
[1772542646734,0.84773241,1967.4,1966.5,0.86267663]
[1772542646943,0.84773241,1967.4,1966.7,0.86267663]
[1772542647142,0.84773241,1967.4,1966.7,0.86347663]
[1772542648142,0.00599378,1968.1,1966.7,0.86347663]
[1772542648143,0.84773241,1968.0,1966.7,0.86347663]
[1772542648741,0.84773241,1967.9,1966.7,0.86347663]
[1772542649440,0.84773241,1967.9,1966.9,0.86267663]
[1772542649744,0.84773241,1967.9,1967.1,0.86267663]
[1772542650042,0.84773241,1967.9,1967.1,0.86347663]
[1772542651638,0.84773241,1967.9,1967.1,0.0008]
[1772542652437,0.84773241,1967.9,1967.1,0.86347663]
[1772542654546,0.00599378,1968.1,1967.1,0.86347663]
[1772542654547,0.85372619,1968.1,1967.3,0.86267663]
[1772542660652,0.85372619,1968.1,1967.5,0.86267663]
[1772542660853,0.85372619,1968.1,1967.5,0.86347663]
[1772542661750,0.85372619,1968.1,1967.5,0.0008]
[1772542662046,0.85372619,1968.1,1967.2,0.86267663]
[1772542662447,0.85372619,1968.1,1967.1,0.86347663]
[1772542662643,0.85372619,1968.1,1967.1,0.0008]
[1772542663150,0.85372619,1968.1,1967.1,0.86347663]
[1772542666247,0.84773241,1968.0,1967.1,0.86347663]
[1772542668652,0.25412,1967.9,1967.1,0.0008]
[1772542668853,0.83063567,1967.8,1967.1,0.0008]
[1772542671051,0.83662945,1968.1,1967.1,0.89593488]
[1772542672349,0.83063567,1968.9,1967.5,0.89513488]
[1772542672755,0.83063567,1968.9,1967.5,0.89593488]
[1772542673353,0.83433541,1968.9,1967.5,0.89593488]
[1772542673964,0.83433541,1968.9,1967.7,0.89513488]
[1772542674155,0.83433541,1968.9,1967.7,0.89925992]
[1772542674662,0.83433541,1968.9,1967.9,0.89513488]
[1772542674858,0.83433541,1968.9,1967.9,0.89593488]
[1772542676257,0.83433541,1968.9,1968.1,0.89513488]
[1772542679855,0.83433541,1968.9,1968.0,0.89513488]
[1772542680460,0.00369974,1968.9,1968.0,0.89513488]
[1772542680654,0.00369974,1968.9,1968.2,0.89513488]
[1772542680859,0.83433541,1968.9,1968.2,0.89513488]
[1772542681858,0.83433541,1968.9,1968.0,0.89513488]
[1772542682062,0.83433541,1968.9,1967.9,0.89593488]
[1772542682458,0.83433541,1968.9,1967.9,0.0008]
[1772542683763,0.83063567,1968.7,1967.7,0.00412504]
[1772542683962,0.83063567,1968.7,1967.7,0.89925992]
[1772542686966,0.83063567,1968.7,1967.7,0.00412504]
[1772542687168,0.83063567,1968.5,1967.5,0.0008]
[1772542687367,0.83063567,1968.3,1967.5,0.0008]
[1772542688164,0.83063567,1968.3,1967.5,0.00641957]
[1772542696075,0.83063567,1968.3,1967.5,0.90155445]
[1772542702278,0.83063567,1968.3,1967.5,0.00641957]
[1772542702979,0.83063567,1968.3,1967.5,0.8448116]
[1772542705388,0.83063567,1968.3,1967.5,0.00641957]
[1772542706288,0.83063567,1968.3,1967.1,0.0008]
[1772542706490,0.86382813,1968.1,1967.1,0.0008]
[1772542706890,0.86382813,1968.1,1967.1,0.83919203]
[1772542707290,0.86382813,1968.1,1967.1,0.84474223]
[1772542707990,0.86382813,1967.9,1967.1,0.84474223]
[1772542713787,0.86382813,1967.9,1967.1,0.0063502]
[1772542713992,0.86382813,1967.7,1966.8,0.83839203]
[1772542715090,0.86382813,1967.7,1966.8,0.84358098]
[1772542721297,0.86382813,1968.2,1967.0,0.83839203]
[1772542722195,0.86382813,1968.2,1967.2,0.83839203]
[1772542722500,0.86382813,1968.7,1967.4,0.83839203]
[1772542722697,0.86382813,1968.5,1967.4,0.83839203]
[1772542728800,0.86382813,1968.5,1967.7,0.86501971]
[1772542729004,0.86382813,1968.5,1967.7,0.86581971]
[1772542731307,0.89873001,1968.8,1967.7,0.86581971]
[1772542734110,0.89873001,1968.6,1967.7,0.86581971]
[1772542740809,0.89873001,1968.4,1967.2,0.0008]
[1772542741012,0.89873001,1968.4,1967.3,0.86501971]
[1772542741709,0.89873001,1968.2,1967.2,0.0008]
[1772542742312,0.89873001,1968.2,1967.2,0.86581971]
[1772542742723,0.89873001,1968.0,1967.2,0.86581971]
[1772542747924,0.89873001,1968.0,1966.8,0.87020866]
[1772542749527,0.89873001,1967.8,1966.8,0.87020866]
[1772542760634,0.89873001,1967.8,1967.0,0.81805677]
[1772542764427,0.89873001,1967.8,1966.9,0.81805677]
[1772542767339,0.88974167,1967.6,1966.8,0.00518895]
[1772542767541,7.55074167,1967.6,1966.8,0.00518895]
[1772542767732,0.88974167,1967.5,1966.8,0.00518895]
[1772542767937,0.89446303,1967.5,1966.8,0.00518895]
[1772542769541,0.89446303,1967.5,1966.8,0.82404572]
[1772542777349,0.00472136,1967.5,1966.8,0.82404572]
[1772542777747,0.89446303,1967.5,1966.8,0.82404572]
[1772542778651,0.00472136,1967.5,1966.8,0.82404572]
[1772542781051,0.89446303,1967.5,1966.8,0.82404572]
[1772542785049,0.00472136,1967.5,1966.8,0.82404572]
[1772542789154,0.87094177,1967.5,1966.8,0.82404572]
[1772542789654,0.00472136,1967.5,1966.8,0.82404572]
[1772542790755,0.00472136,1967.5,1966.8,0.82324572]
[1772542791459,0.00472136,1967.5,1966.8,1.07749572]
[1772542791755,0.00472136,1967.5,1966.9,0.8662483]
[1772542791951,0.86622041,1967.9,1966.9,0.8662483]
[1772542792954,0.87179241,1967.9,1967.1,0.8662483]
[1772542800662,0.005572,1967.9,1967.3,0.8662483]
[1772542800959,0.86622041,1968.5,1967.4,0.8662483]
[1772542801154,0.86622041,1968.5,1967.6,0.8662483]
[1772542801355,0.86622041,1968.5,1967.8,0.8662483]
[1772542801554,0.86622041,1969.0,1967.9,0.8662483]
[1772542801759,0.86622041,1968.8,1967.9,0.8662483]
[1772542802958,0.86622041,1968.9,1967.9,0.8662483]
[1772542803155,0.86622041,1968.9,1968.1,0.8662483]
[1772542804460,0.86622041,1968.9,1968.0,0.2541]
[1772542804461,0.86622041,1968.8,1967.6,0.8662483]
[1772542804663,0.86622041,1968.6,1967.1,0.8662483]
[1772542804858,0.25406,1968.3,1967.1,0.8662483]
[1772542805059,6.2489,1968.7,1967.1,0.8662483]
[1772542805060,0.86622041,1968.0,1967.1,0.8662483]
[1772542807067,0.86622041,1968.0,1966.8,0.87143725]
[1772542807263,0.86622041,1967.8,1966.8,0.00518895]
[1772542807472,0.86622041,1967.6,1966.8,0.00518895]
[1772542807665,0.87214768,1967.6,1966.8,0.00518895]
[1772542808869,0.86622041,1967.4,1966.3,0.8662483]
[1772542809258,0.86622041,1967.3,1966.3,0.8662483]
[1772542809466,0.86622041,1967.3,1965.9,0.8662483]
[1772542809867,0.86622041,1967.3,1965.9,0.87241055]
[1772542810363,0.86622041,1967.3,1966.0,0.8662483]
[1772542813267,0.86622041,1967.2,1966.0,0.8662483]
[1772542815064,0.86622041,1967.0,1966.0,0.8662483]
[1772542815365,0.86622041,1967.0,1965.9,0.87241055]
[1772542818270,0.86653936,1966.8,1965.9,0.87241055]
[1772542820367,0.8382005,1967.3,1966.1,0.81395292]
[1772542820575,0.8382005,1967.3,1966.3,0.81395292]
[1772542822473,0.8382005,1967.5,1966.5,0.81395292]
[1772542823572,0.8382005,1967.5,1966.7,0.81475292]
[1772542824171,0.8382005,1967.5,1966.3,0.81395292]
[1772542824869,0.8382005,1967.3,1966.3,0.81395292]
[1772542827979,0.8382005,1967.3,1966.4,0.81395292]
[1772542828280,0.8382005,1967.3,1966.4,0.81475292]
[1772542829078,0.8382005,1967.3,1966.4,0.0008]
[1772542831377,0.8382005,1967.1,1966.4,0.0008]
[1772542832283,0.8382005,1967.1,1966.1,0.81395292]
[1772542835281,0.8382005,1966.9,1966.0,0.81395292]
[1772542835482,0.8382005,1966.9,1966.0,0.81475292]
[1772542836684,0.8382005,1966.9,1966.0,0.0008]
[1772542837284,0.8382005,1966.9,1966.0,0.81475292]
[1772542839887,0.8382005,1966.7,1966.0,0.0008]
[1772542841087,0.8382005,1966.7,1965.4,6.662]
[1772542841088,0.8382005,1966.2,1965.7,0.81395292]
[1772542841282,0.8382005,1966.2,1965.3,0.81395292]
[1772542842185,0.84358813,1966.2,1965.3,0.82051504]
[1772542844291,0.84358813,1966.2,1965.3,0.00656212]
[1772542844688,0.84358813,1966.2,1965.3,0.82051504]
[1772542845384,0.84358813,1966.2,1965.3,0.00656212]
[1772542845687,0.84358813,1966.2,1965.3,0.82051504]
[1772542845888,0.8382005,1966.0,1965.3,0.82051504]
[1772542846685,0.25436,1966.0,1964.4,6.662]
[1772542846885,0.8382005,1965.9,1964.5,0.81395292]
[1772542847086,0.8382005,1965.9,1964.5,0.81475292]
[1772542847686,0.8382005,1965.9,1964.5,0.81959255]
[1772542848491,0.77070093,1965.8,1964.5,0.81959255]
[1772542849288,0.77070093,1965.7,1964.7,0.8479872]
[1772542850897,0.77070093,1965.9,1964.9,0.8479872]
[1772542851099,0.77070093,1965.9,1965.0,0.8479872]
[1772542853597,0.77070093,1965.9,1964.9,0.8487872]
[1772542855404,0.77070093,1965.7,1964.9,0.8487872]
[1772542856803,0.77070093,1965.7,1964.9,0.0008]
[1772542857004,0.77070093,1965.7,1964.9,0.8487872]
[1772542857504,0.77070093,1965.7,1964.9,0.0008]
[1772542858208,0.77070093,1965.7,1964.9,0.8487872]
[1772542859710,0.77070093,1965.7,1964.9,0.0008]
[1772542860015,0.77070093,1965.5,1964.5,0.85362683]
[1772542860210,0.77070093,1965.4,1964.5,0.85362683]
[1772542860713,0.77070093,1965.2,1964.5,0.85362683]
[1772542861814,0.77070093,1965.2,1964.5,0.00563963]
[1772542862216,0.77070093,1965.2,1964.5,0.85362683]
[1772542862610,0.77070093,1965.2,1964.5,0.00563963]
[1772542864013,0.77070093,1965.2,1964.5,0.85362683]
[1772542864514,0.77070093,1965.6,1964.5,0.85362683]
[1772542867011,0.77070093,1965.2,1964.5,0.00563963]
[1772542867813,0.77070093,1965.2,1964.1,0.8479872]
[1772542868810,0.77070093,1965.2,1964.1,0.85375481]
[1772542869818,0.77070093,1965.2,1964.2,0.8479872]
[1772542870021,0.77070093,1965.2,1964.2,0.8487872]
[1772542872223,0.77070093,1965.6,1964.4,0.8479872]
[1772542872521,0.77070093,1965.4,1964.4,0.8479872]
[1772542873019,0.77070093,1965.3,1964.4,0.8479872]
[1772542873520,2.38821157,1965.5,1964.4,0.8479872]
[1772542873521,0.77070093,1965.5,1964.4,0.8479872]
[1772542873917,0.77070093,1965.4,1964.4,0.8479872]
[1772542874623,0.77070093,1965.2,1964.4,0.8479872]
[1772542875413,0.77070093,1965.1,1964.4,0.8479872]
[1772542875919,7.03100093,1965.1,1964.2,0.0008]
[1772542876124,0.77070093,1964.8,1963.2,0.8479872]
[1772542876325,0.77070093,1964.6,1963.2,0.8479872]
[1772542876520,0.77070093,1964.4,1963.2,0.8479872]
[1772542877224,0.77446557,1964.4,1963.2,0.85205093]
[1772542877427,0.77446557,1964.4,1963.4,0.8479872]
[1772542877627,0.77446557,1964.4,1963.4,0.8487872]
[1772542879422,0.77391924,1964.3,1963.4,0.8487872]
[1772542880526,0.77391924,1964.3,1963.4,0.0008]
[1772542880728,0.77391924,1964.3,1963.4,0.80488655]
[1772542881031,0.76286866,1964.2,1963.4,0.80488655]
[1772542881928,0.7666333,1964.4,1963.4,0.80488655]
[1772542883032,0.00376464,1964.4,1963.5,0.25469]
[1772542883235,0.76286866,1964.8,1963.8,0.80408655]
[1772542883439,0.76286866,1964.8,1963.8,0.80488655]
[1772542884237,0.76655017,1964.8,1963.8,0.80488655]
[1772542885936,0.76286866,1964.6,1963.8,0.80488655]
[1772542887637,0.76286866,1964.5,1963.8,0.0008]
[1772542889243,0.76286866,1964.3,1963.8,0.80488655]
[1772542890338,0.76286866,1964.7,1963.8,0.80488655]
[1772542890733,0.76286866,1964.7,1964.0,0.80408655]
[1772542890933,0.76655017,1964.8,1964.0,0.80408655]
[1772542891433,0.00368151,1964.8,1964.0,0.80408655]
[1772542891849,0.76655017,1964.8,1964.0,0.80408655]
[1772542893241,1.02107017,1964.8,1964.0,0.80408655]
[1772542893438,0.76286866,1964.7,1963.8,0.80488655]
[1772542894438,0.76286866,1964.5,1963.8,0.80488655]
[1772542894839,0.76286866,1964.7,1963.8,0.80488655]
[1772542897247,0.76286866,1964.5,1963.8,0.80488655]
[1772542900948,0.76286866,1964.5,1963.8,0.0008]
[1772542901440,0.76286866,1964.5,1963.8,0.80488655]
[1772542901846,0.76286866,1964.5,1963.8,0.0008]
[1772542902952,0.76286866,1964.3,1963.8,0.80488655]
[1772542903251,0.76286866,1964.3,1963.8,0.70971575]
[1772542903452,7.42586866,1964.5,1963.8,0.70971575]
[1772542903649,0.76286866,1964.4,1963.8,0.70971575]
[1772542905152,6.663,1964.5,1963.8,0.70971575]
[1772542905353,7.42586866,1964.5,1963.8,0.70971575]
[1772542905645,6.27369,1960.9,1959.8,16.00137501]
[1772542905842,2.39458259,1960.5,1959.2,0.85992421]
[1772542906042,0.76286866,1959.8,1958.6,1.66401663]
[1772542906245,0.76286866,1959.6,1957.9,0.80408655]
[1772542906446,0.76286866,1959.2,1957.9,0.80894458]
[1772542906643,0.76775759,1959.6,1958.1,0.80408655]
[1772542906848,0.76775759,1959.6,1958.3,0.80488655]
[1772542907042,0.76775759,1959.6,1958.5,0.80408655]
[1772542907443,0.76775759,1959.6,1958.4,0.85993008]
[1772542907444,0.76775759,1959.6,1958.7,0.80488655]
[1772542907754,0.00488893,1959.6,1958.7,0.80488655]
[1772542908249,1.10481931,1960.4,1958.9,1.26778307]
[1772542909248,1.10990107,1960.4,1959.1,1.26778307]
[1772542909444,0.00508176,1960.4,1959.1,1.26858307]
[1772542909851,0.00508176,1960.4,1959.3,1.26778307]
[1772542910051,0.00508176,1960.4,1959.3,1.27249852]
[1772542910358,0.00508176,1960.4,1959.5,1.26778307]
[1772542910551,0.00508176,1960.4,1959.5,1.26858307]
[1772542910754,1.18931681,1961.6,1959.7,1.26778307]
[1772542910954,1.18931681,1961.6,1959.6,6.27785]
[1772542910955,1.18931681,1961.6,1959.9,1.26778307]
[1772542911146,7.84878586,1961.8,1959.9,1.26858307]
[1772542911354,0.25486,1962.2,1959.9,1.26858307]
[1772542911355,1.18216208,1962.1,1960.1,1.26778307]
[1772542911548,1.18216208,1962.1,1960.4,1.26778307]
[1772542911751,0.00479501,1962.1,1960.4,1.26858307]
[1772542912348,0.00479501,1962.1,1960.6,1.26778307]
[1772542912757,1.21575272,1962.9,1960.8,1.26778307]
[1772542912959,1.21575272,1962.9,1961.0,1.26778307]
[1772542913855,1.22056504,1962.9,1961.0,1.27311497]
[1772542914560,0.00481232,1962.9,1961.2,1.26778307]
[1772542914759,0.00481232,1962.9,1961.2,1.26858307]
[1772542915856,1.21412955,1962.7,1961.2,1.26858307]
[1772542916056,1.20669364,1962.5,1961.4,1.26778307]
[1772542918152,1.20669364,1962.5,1961.5,1.26778307]
[1772542919062,1.1986917,1962.8,1961.5,1.26778307]
[1772542920753,1.20133644,1962.2,1961.2,7.93458307]
[1772542921058,1.19399835,1962.0,1961.2,0.0008]
[1772542923758,1.17007487,1961.2,1960.4,0.0008]
[1772542923957,1.42514487,1960.6,1960.0,0.0008]
[1772542924263,1.2414491,1961.0,1960.0,1.26858307]
[1772542924769,0.00462916,1961.0,1960.0,1.27269253]
[1772542925060,0.25502,1960.9,1960.0,1.27269253]
[1772542925264,0.00462916,1961.0,1960.0,1.27269253]
[1772542925466,1.23933777,1961.0,1960.0,1.27269253]
[1772542925763,1.23933777,1961.0,1960.2,1.26778307]
[1772542925966,0.00462916,1961.0,1960.2,1.26778307]
[1772542928568,1.22230638,1961.0,1960.2,1.26778307]
[1772542929866,1.47731638,1961.0,1960.2,1.26778307]
[1772542930067,1.47731638,1961.0,1960.0,1.27269253]
[1772542930764,1.18834779,1960.8,1960.0,1.27269253]
[1772542931465,1.18121559,1960.6,1960.0,1.27269253]
[1772542931672,1.18121559,1960.3,1959.5,0.0008]
[1772542931969,1.18121559,1959.9,1959.2,1.26858307]
[1772542932168,1.42926652,1959.8,1958.8,1.26778307]
[1772542932369,1.17345412,1959.6,1958.8,1.26778307]
[1772542932568,1.17940333,1959.6,1958.8,1.27142966]
[1772542932764,0.00594921,1959.6,1958.8,1.27142966]
[1772542933566,8.0406166,1959.8,1958.8,1.27142966]